bitfinex/quotes_BTCUSD_20241110
["timestamp","ask_amount","ask_price","bid_price","bid_amount"]
[1731276880168,0.12594221,80357.0,80353.0,0.12445]
[1731276881482,0.12594221,80357.0,80344.0,0.248929]
[1731276881688,0.12594221,80357.0,80345.0,0.00777578]
[1731276881894,0.25038721,80357.0,80348.0,0.124458]
[1731276882091,0.25038721,80357.0,80347.0,0.24892]
[1731276882092,0.12594221,80357.0,80347.0,0.24892]
[1731276882299,0.12445,80354.0,80343.0,0.00168]
[1731276882498,0.12594221,80353.0,80344.0,0.248929]
[1731276882725,0.12594221,80353.0,80350.0,0.124454]
[1731276882924,0.12594221,80353.0,80344.0,0.248929]
[1731276882925,0.12594221,80353.0,80346.0,0.248923]
[1731276883087,0.12594221,80353.0,80349.0,0.124456]
[1731276883733,0.12594221,80353.0,80352.0,0.124452]
[1731276884180,0.12594221,80353.0,80349.0,0.124456]
[1731276884388,0.12594221,80353.0,80344.0,0.248929]
[1731276884562,0.12594221,80353.0,80346.0,0.124461]
[1731276884767,0.12594221,80353.0,80343.0,0.00168]
[1731276885110,0.12594221,80353.0,80347.0,0.124459]
[1731276885877,0.12594221,80353.0,80348.0,0.124458]
[1731276886579,0.12594221,80353.0,80346.0,0.248923]
[1731276886793,0.6615,80363.0,80343.0,0.00168]
[1731276887000,0.6615,80363.0,80345.0,0.248926]
[1731276887001,0.18703358,80358.0,80345.0,0.248926]
[1731276887270,0.12594221,80362.0,80355.0,0.124446]
[1731276888063,0.12594221,80362.0,80356.0,0.124445]
[1731276889428,0.12594221,80362.0,80347.0,0.24892]
[1731276889634,0.12594221,80362.0,80355.0,0.124446]
[1731276889849,0.12594221,80362.0,80356.0,0.124445]
[1731276890090,0.05886747,80361.0,80340.0,0.04063597]
[1731276890288,0.005,80358.0,80340.0,0.12447]
[1731276890509,0.124462,80346.0,80333.0,0.18703358]
[1731276890682,0.248907,80352.0,80336.0,0.248953]
[1731276890883,0.12594221,80351.0,80333.0,0.18703358]
[1731276891122,0.124464,80344.0,80334.0,0.124479]
[1731276891379,0.91190621,80344.0,80334.0,0.18703358]
[1731276891812,0.91190621,80344.0,80332.0,0.001682]
[1731276892028,0.91190621,80344.0,80335.0,0.18703358]
[1731276892029,0.78744221,80344.0,80335.0,0.18703358]
[1731276892408,0.91190621,80344.0,80335.0,0.18703358]
[1731276893224,0.95251682,80344.0,80335.0,0.18703358]
[1731276893935,1.07845903,80344.0,80335.0,0.18703358]
[1731276894136,0.95251682,80344.0,80335.0,0.18703358]
[1731276895446,0.95251682,80344.0,80332.0,0.001682]
[1731276895667,0.95251682,80344.0,80336.0,0.18703358]
[1731276897672,0.78744221,80344.0,80339.0,0.126151]
[1731276898100,0.91190621,80344.0,80339.0,0.00168]
[1731276901620,0.91390621,80344.0,80339.0,0.00168]
[1731276902048,0.91690621,80344.0,80339.0,0.00168]
[1731276902254,1.04850813,80344.0,80339.0,0.00168]
[1731276902460,1.05050813,80344.0,80339.0,0.00168]
[1731276902670,1.08770288,80344.0,80339.0,0.00168]
[1731276903309,1.08769593,80344.0,80339.0,0.00168]
[1731276903525,0.96409401,80344.0,80339.0,0.00168]
[1731276903737,0.91190621,80344.0,80339.0,0.00168]
[1731276903955,0.78744221,80344.0,80339.0,0.00168]
[1731276904161,0.6615,80344.0,80343.0,0.126146]
[1731276905207,0.18703358,80359.0,80351.0,0.248905]
[1731276905421,0.12594221,80358.0,80351.0,0.248905]
[1731276905623,0.5,80368.0,80345.0,0.248926]
[1731276905846,1.85803358,80369.0,80343.0,0.00168]
[1731276905847,1.671,80369.0,80368.0,0.124427]
[1731276906055,1.671,80369.0,80364.0,0.0755]
[1731276906056,0.18703358,80365.0,80364.0,0.0755]
[1731276906286,0.18703358,80365.0,80352.0,0.0499]
[1731276906287,0.124432,80365.0,80352.0,0.0499]
[1731276906547,1.671,80369.0,80357.0,0.18703358]
[1731276906760,1.671,80369.0,80352.0,0.0499]
[1731276906761,1.671,80369.0,80366.0,0.12443]
[1731276906994,1.671,80369.0,80368.0,0.124427]
[1731276907665,0.00084,80373.0,80372.0,0.124421]
[1731276907893,0.00084,80373.0,80372.0,0.12690926]
[1731276908106,0.00084,80373.0,80372.0,0.124421]
[1731276908313,0.00084,80373.0,80372.0,0.12890906]
[1731276908529,0.06344,80373.0,80372.0,0.36485127]
[1731276908744,0.000706,80393.0,80372.0,0.36485127]
[1731276908745,0.000706,80393.0,80392.0,0.12439]
[1731276909182,0.000706,80393.0,80380.0,0.005]
[1731276909406,0.000706,80393.0,80379.0,0.18703358]
[1731276909407,0.14487077,80392.0,80379.0,0.18703358]
[1731276909629,0.12594221,80392.0,80389.0,0.124394]
[1731276909839,0.12594221,80392.0,80379.0,0.18703358]
[1731276910074,0.12594221,80392.0,80383.0,0.248808]
[1731276910531,0.12594221,80392.0,80386.0,0.124399]
[1731276910764,0.12594221,80392.0,80391.0,0.124392]
[1731276911221,0.000706,80393.0,80392.0,0.12439]
[1731276913246,0.000706,80393.0,80392.0,0.12687764]
[1731276913456,0.000706,80393.0,80392.0,0.17367764]
[1731276913870,0.000706,80393.0,80392.0,0.17119]
[1731276914525,0.000706,80393.0,80392.0,0.17367749]
[1731276914730,0.000706,80393.0,80392.0,0.54803522]
[1731276914942,0.000706,80393.0,80392.0,0.55303522]
[1731276915378,0.18773858,80405.0,80404.0,0.248271]
[1731276915585,0.000705,80405.0,80404.0,0.39097401]
[1731276915808,0.000705,80405.0,80404.0,0.248271]
[1731276917099,0.000705,80405.0,80404.0,0.39346104]
[1731276917317,0.000705,80405.0,80404.0,0.248271]
[1731276917648,0.000705,80405.0,80404.0,0.169371]
[1731276918050,0.000705,80405.0,80404.0,0.124371]
[1731276918446,0.00041,80407.0,80406.0,0.124368]
[1731276919196,0.00041,80407.0,80400.0,0.497512]
[1731276919197,0.00041,80407.0,80400.0,0.248756]
[1731276919401,0.00041,80407.0,80406.0,0.124368]
[1731276919762,0.00041,80407.0,80403.0,0.124373]
[1731276919989,0.00041,80407.0,80400.0,0.248756]
[1731276920172,0.00041,80407.0,80405.0,0.124369]
[1731276920403,0.00041,80407.0,80397.0,0.18703358]
[1731276920614,0.00041,80407.0,80405.0,0.124369]
[1731276920955,0.00041,80407.0,80406.0,0.124368]
[1731276921176,0.00041,80407.0,80397.0,0.18703358]
[1731276921177,0.00041,80407.0,80400.0,0.248756]
[1731276921336,0.00041,80407.0,80396.0,0.248765]
[1731276921480,0.00041,80407.0,80397.0,0.18703358]
[1731276921749,0.00041,80407.0,80406.0,0.124368]
[1731276922571,0.00041,80407.0,80406.0,0.42350042]
[1731276922797,0.00041,80407.0,80406.0,0.20592414]
[1731276922996,0.00041,80407.0,80406.0,0.171668]
[1731276923900,0.00016,80407.0,80406.0,0.171668]
[1731276924771,0.00016,80407.0,80402.0,0.248747]
[1731276925027,0.00016,80407.0,80406.0,0.124368]
[1731276925425,0.0117564,80412.0,80407.0,0.124367]
[1731276925628,0.0117564,80412.0,80402.0,0.250427]
[1731276925629,0.124361,80411.0,80402.0,0.250427]
[1731276925869,0.0117564,80412.0,80402.0,0.00168]
[1731276926221,0.0117564,80412.0,80408.0,0.124365]
[1731276926805,0.0117564,80412.0,80410.0,0.124361]
[1731276927007,0.0117564,80412.0,80406.0,0.248737]
[1731276927163,0.0117564,80412.0,80408.0,0.124365]
[1731276927577,0.0117564,80412.0,80402.0,0.00168]
[1731276927775,0.0117564,80412.0,80408.0,0.124365]
[1731276928100,0.0117564,80412.0,80402.0,0.00168]
[1731276928475,0.12594221,80411.0,80402.0,0.00168]
[1731276928879,0.248731,80408.0,80402.0,0.00168]
[1731276929104,0.12594221,80411.0,80402.0,0.00168]
[1731276929105,0.124373,80403.0,80402.0,0.00168]
[1731276929505,0.25031521,80403.0,80402.0,0.00168]
[1731276931864,0.248736,80407.0,80402.0,0.00168]
[1731276932071,0.12437,80405.0,80402.0,0.00168]
[1731276932212,0.25031321,80404.0,80402.0,0.00168]
[1731276932412,0.010705,80414.0,80402.0,0.00168]
[1731276932413,0.03970294,80411.0,80403.0,0.18703358]
[1731276932615,0.000705,80414.0,80411.0,0.124361]
[1731276933091,0.000705,80414.0,80402.0,0.00168]
[1731276933281,0.000705,80414.0,80411.0,0.124361]
[1731276935314,0.000705,80414.0,80411.0,0.28455935]
[1731276935533,0.000705,80414.0,80411.0,0.25455935]
[1731276935876,0.000705,80414.0,80411.0,0.22030321]
[1731276936595,0.0125964,80412.0,80411.0,0.22030321]
[1731276936801,0.0125964,80412.0,80411.0,0.26028566]
[1731276937014,0.0125964,80412.0,80411.0,0.16592466]
[1731276937224,0.0125964,80412.0,80411.0,0.32077246]
[1731276937442,0.0125964,80412.0,80411.0,0.5957418]
[1731276937642,0.01041,80421.0,80417.0,0.248703]
[1731276937802,0.00109775,80437.0,80434.0,0.124325]
[1731276938002,0.00109775,80437.0,80434.0,0.30653415]
[1731276938411,0.00109775,80437.0,80434.0,0.26702801]
[1731276938622,0.00109775,80437.0,80434.0,0.26951414]
[1731276938857,0.00109775,80437.0,80434.0,0.40045635]
[1731276939066,0.00109775,80437.0,80434.0,0.39797022]
[1731276939424,0.00109775,80437.0,80434.0,0.4390649]
[1731276939832,0.00109775,80437.0,80434.0,0.16541968]
[1731276943857,0.00109775,80437.0,80434.0,0.16790572]
[1731276944396,0.00109775,80437.0,80434.0,0.31936189]
[1731276945031,0.00109775,80437.0,80434.0,0.42936189]
[1731276947623,0.00109775,80437.0,80436.0,0.262322]
[1731276947822,0.00109775,80437.0,80436.0,0.38826421]
[1731276951476,0.00109775,80437.0,80436.0,0.124322]
[1731276951891,0.00109775,80437.0,80436.0,0.12680813]
[1731276952081,0.00109775,80437.0,80436.0,0.124322]
[1731276952933,0.00109775,80437.0,80436.0,0.16674481]
[1731276953146,0.00109775,80437.0,80436.0,0.124322]
[1731276954559,0.00109775,80437.0,80436.0,0.16674481]
[1731276954990,0.00109775,80437.0,80436.0,0.124322]
[1731276955280,0.00109775,80437.0,80436.0,0.12680813]
[1731276957343,0.00109775,80437.0,80436.0,0.124322]
[1731276957780,0.00109775,80437.0,80436.0,0.12680798]
[1731276958180,0.00109775,80437.0,80436.0,0.12680797]
[1731276959169,0.00109775,80437.0,80436.0,0.14699869]
[1731276960290,0.00109775,80437.0,80436.0,0.3029409]
[1731276960511,0.00109775,80437.0,80436.0,0.30545493]
[1731276960721,0.00193775,80437.0,80436.0,0.49339387]
[1731276960930,0.00193775,80437.0,80436.0,0.61457096]
[1731276961392,0.00193775,80437.0,80436.0,0.61957096]
[1731276962583,0.00193775,80437.0,80436.0,0.59938024]
[1731276962749,0.00193775,80437.0,80436.0,0.62156974]
[1731276962972,0.18703358,80453.0,80449.0,0.152302]
[1731276963228,0.18703358,80453.0,80449.0,0.29843371]
[1731276963445,0.18703358,80453.0,80449.0,0.1444915]
[1731276963641,0.000705,80454.0,80449.0,0.124302]
[1731276963772,0.000705,80454.0,80449.0,0.14449082]
[1731276964059,0.000705,80454.0,80449.0,0.12678759]
[1731276964207,0.000705,80454.0,80449.0,0.124302]
[1731276964612,0.000705,80454.0,80449.0,0.16567874]
[1731276965423,0.000705,80454.0,80449.0,0.17344393]
[1731276965825,0.000705,80454.0,80449.0,0.18586824]
[1731276966042,0.000705,80454.0,80449.0,0.33981045]
[1731276966213,0.00035,80450.0,80449.0,0.33981045]
[1731276968587,0.00035,80450.0,80449.0,0.33980946]
[1731276969211,0.00035,80450.0,80449.0,0.34980946]
[1731276969432,0.00035,80450.0,80449.0,0.44980946]
[1731276969638,0.00035,80450.0,80449.0,0.43980946]
[1731276969878,0.00035,80450.0,80449.0,0.44980946]
[1731276970273,0.00035,80450.0,80449.0,0.42962095]
[1731276970723,0.00035,80450.0,80449.0,0.43162095]
[1731276970945,0.00035,80450.0,80449.0,0.35191895]
[1731276971136,0.00035,80450.0,80449.0,0.47622095]
[1731276971558,0.00035,80450.0,80449.0,0.49640839]
[1731276972235,0.00035,80450.0,80449.0,0.52081062]
[1731276972403,0.00113685,80471.0,80470.0,0.152269]
[1731276972604,0.00113685,80471.0,80470.0,0.27821121]
[1731276972863,0.00113685,80471.0,80470.0,0.29839865]
[1731276973629,0.000704,80486.0,80485.0,0.005]
[1731276973813,0.000704,80486.0,80485.0,0.42826864]
[1731276974182,0.000704,80486.0,80485.0,0.43569168]
[1731276974419,0.000704,80486.0,80485.0,0.27037565]
[1731276974629,0.000704,80486.0,80485.0,0.173162]
[1731276974848,0.000408,80488.0,80487.0,0.124243]
[1731276975046,0.000408,80488.0,80487.0,0.1320074]
[1731276976089,0.000408,80488.0,80487.0,0.124243]
[1731276976289,0.000408,80488.0,80487.0,0.25266977]
[1731276976416,0.000408,80488.0,80487.0,0.25018521]
[1731276977230,0.000408,80488.0,80487.0,0.25794719]
[1731276977616,0.000408,80488.0,80487.0,0.25794722]
[1731276978947,0.000408,80488.0,80487.0,0.25018521]
[1731276981310,0.000408,80488.0,80487.0,0.2579471]
[1731276981522,0.000408,80488.0,80487.0,0.25018521]
[1731276981954,0.000408,80488.0,80487.0,0.124243]
[1731276983184,0.000112,80493.0,80492.0,0.124235]
[1731276984039,0.000112,80493.0,80487.0,0.248487]
[1731276984040,0.000839,80488.0,80487.0,0.248487]
[1731276984254,0.000839,80488.0,80487.0,0.37273]
[1731276985403,0.000839,80488.0,80485.0,0.001678]
[1731276985826,0.000839,80488.0,80485.0,0.125923]
[1731276986036,0.000839,80488.0,80487.0,0.124243]
[1731276986348,0.000839,80488.0,80485.0,0.001678]
[1731276986780,0.000839,80488.0,80487.0,0.124243]
[1731276987185,0.000839,80488.0,80485.0,0.001678]
[1731276987390,0.000839,80488.0,80487.0,0.124243]
[1731276987726,0.000839,80488.0,80485.0,0.125923]
[1731276988025,0.000839,80488.0,80487.0,0.124243]
[1731276990795,0.000839,80488.0,80487.0,0.12672777]
[1731276991028,0.000839,80488.0,80487.0,0.124243]
[1731276992335,0.000839,80488.0,80487.0,0.26655903]
[1731276992560,0.000839,80488.0,80487.0,0.39343189]
[1731276992818,0.000839,80488.0,80487.0,0.50026344]
[1731276993279,0.000839,80488.0,80487.0,0.27036505]
[1731276993451,0.000839,80488.0,80487.0,0.25794741]
[1731276994006,0.000839,80488.0,80487.0,0.1320052]
[1731276995088,0.000839,80488.0,80487.0,0.1336832]
[1731276995677,0.000839,80488.0,80487.0,0.25962541]
[1731276995902,0.000839,80488.0,80487.0,0.26210926]
[1731276996405,0.000839,80488.0,80487.0,0.25962476]
[1731276996616,0.000839,80488.0,80487.0,0.27204303]
[1731276996944,0.000839,80488.0,80487.0,0.25962476]
[1731276997373,0.000839,80488.0,80487.0,0.26210913]
[1731276997575,0.000839,80488.0,80487.0,0.25962476]
[1731276997923,0.000839,80488.0,80487.0,0.26210914]
[1731276998155,0.000839,80488.0,80487.0,0.28111008]
[1731276998996,0.000839,80488.0,80487.0,0.26869186]
[1731276999425,0.15403241,80503.0,80502.0,0.12422]
[1731276999633,0.15403241,80503.0,80487.0,0.14444886]
[1731276999634,0.59943818,80516.0,80487.0,0.14444886]
[1731276999878,0.124207,80511.0,80503.0,0.124218]
[1731277000062,0.59943818,80516.0,80493.0,0.18703358]
[1731277000063,0.124208,80510.0,80501.0,0.248444]
[1731277000278,0.59943818,80516.0,80487.0,0.18871158]
[1731277000479,0.124208,80510.0,80503.0,0.124218]
[1731277001104,0.35104018,80516.0,80503.0,0.124218]
[1731277001318,0.124201,80515.0,80503.0,0.124218]
[1731277001516,0.35104018,80516.0,80503.0,0.124218]
[1731277001682,0.248407,80513.0,80491.0,0.248473]
[1731277001884,0.248433,80505.0,80492.0,0.00776139]
[1731277002134,0.03985376,80514.0,80503.0,0.124218]
[1731277002378,0.0158447,80520.0,80505.0,0.124215]
[1731277002552,0.18703358,80515.0,80505.0,0.13197639]
[1731277002781,0.124195,80519.0,80505.0,0.13197639]
[1731277002949,0.0158447,80520.0,80505.0,0.13197639]
[1731277003747,0.0158447,80520.0,80505.0,0.13197538]
[1731277004137,0.1400377,80520.0,80505.0,0.13197538]
[1731277005003,0.0158447,80520.0,80505.0,0.13197538]
[1731277005921,0.1400377,80520.0,80505.0,0.13197538]
[1731277006124,0.0158447,80520.0,80505.0,0.13197538]
[1731277006668,0.00201496,80506.0,80505.0,0.13973592]
[1731277006879,0.00201496,80506.0,80505.0,0.13973596]
[1731277009923,0.93936409,80640.0,80530.0,0.74529069]
[1731277010138,0.21880923,80691.0,80689.0,0.005]
[1731277010360,0.02705299,80735.0,80725.0,0.14187479]
[1731277010562,0.00113918,80785.0,80784.0,0.123786]
[1731277010809,0.00113918,80785.0,80734.0,0.15858512]
[1731277010810,0.07980756,80785.0,80781.0,0.07154761]
[1731277011017,0.07980756,80785.0,80784.0,0.12594221]
[1731277011018,0.08177965,80785.0,80784.0,0.12594221]
[1731277011218,0.06124606,80798.0,80784.0,0.12594221]
[1731277011219,0.8235,80797.0,80784.0,0.44747014]
[1731277011448,0.16579402,80785.0,80784.0,0.18427605]
[1731277011640,0.16579402,80785.0,80784.0,1.59865007]
[1731277011848,0.17079402,80785.0,80784.0,1.59865007]
[1731277012056,0.43405226,80785.0,80784.0,1.61295704]
[1731277012310,0.16579402,80785.0,80784.0,1.61295704]
[1731277012556,0.128785,80785.0,80784.0,0.65288144]
[1731277012808,0.128785,80785.0,80784.0,0.13005473]
[1731277012809,0.14541143,80785.0,80784.0,0.13005473]
[1731277013000,0.24972721,80785.0,80784.0,0.13005473]
[1731277013241,0.25472721,80785.0,80784.0,0.13005473]
[1731277013441,0.25472721,80785.0,80784.0,0.05265357]
[1731277013667,0.25472721,80785.0,80780.0,0.07020414]
[1731277013668,0.123789,80783.0,80780.0,0.05265357]
[1731277013870,0.92096212,80782.0,80777.0,0.07020414]
[1731277014093,0.005,80778.0,80774.0,0.08775518]
[1731277014289,0.3714,80776.0,80775.0,0.12957023]
[1731277014496,0.8235,80777.0,80771.0,0.03500303]
[1731277014729,0.123781,80788.0,80773.0,0.05250454]
[1731277014964,0.74529069,80785.0,80780.0,0.03498588]
[1731277015198,0.74529069,80799.0,80782.0,0.03498588]
[1731277015399,1.6712,80800.0,80796.0,0.125768]
[1731277015400,0.18566539,80797.0,80796.0,0.125768]
[1731277015599,0.18566539,80797.0,80785.0,0.005]
[1731277015600,0.18566539,80797.0,80784.0,0.005]
[1731277015730,0.18566539,80797.0,80791.0,0.03497619]
[1731277015949,0.0002,80800.0,80792.0,0.002]
[1731277016154,8e-05,80804.0,80795.0,0.005]
[1731277016365,0.123741,80814.0,80797.0,0.005]
[1731277016575,0.00061705,80804.0,80796.0,0.005]
[1731277016775,0.247478,80815.0,80796.0,0.005]
[1731277017013,0.00149481,80816.0,80801.0,0.12376]
[1731277017190,0.18566539,80809.0,80796.0,0.005]
[1731277017412,0.18566539,80808.0,80787.0,0.18566539]
[1731277017640,0.00149481,80816.0,80791.0,0.18566539]
[1731277017849,0.123751,80807.0,80792.0,0.12594221]
[1731277018049,0.18566539,80808.0,80793.0,0.00247502]
[1731277018050,0.123756,80805.0,80793.0,0.00247502]
[1731277018282,0.30941639,80808.0,80793.0,0.00247502]
[1731277018491,0.00149481,80816.0,80794.0,0.12594221]
[1731277018699,0.18566539,80807.0,80798.0,0.123765]
[1731277019084,0.00233381,80816.0,80799.0,0.12594221]
[1731277019267,0.18566539,80815.0,80805.0,0.123754]
[1731277019457,0.18566539,80815.0,80806.0,0.12594221]
[1731277019700,0.00233381,80816.0,80808.0,0.18566539]
[1731277019893,0.00233381,80816.0,80809.0,0.12594221]
[1731277020100,0.18566539,80815.0,80809.0,0.12594221]
[1731277020306,0.18566539,80815.0,80789.0,0.01]
[1731277020562,0.123773,80793.0,80792.0,0.18566539]
[1731277020731,0.247481,80814.0,80793.0,0.005]
[1731277020732,0.18566539,80814.0,80793.0,0.005]
[1731277020947,0.18566539,80805.0,80794.0,0.0024748]
[1731277021109,0.18566539,80805.0,80794.0,0.12841701]
[1731277021313,0.18466539,80805.0,80783.0,0.18766539]
[1731277021479,0.247494,80810.0,80795.0,0.12594221]
[1731277021680,0.18566539,80814.0,80796.0,0.00247493]
[1731277021681,0.18566539,80804.0,80796.0,0.00247493]
[1731277021903,0.00233381,80816.0,80804.0,0.002]
[1731277022102,0.00233381,80816.0,80813.0,0.002]
[1731277022103,0.18566539,80814.0,80813.0,0.002]
[1731277022349,0.18566539,80814.0,80813.0,0.12594221]
[1731277022553,0.00233381,80816.0,80815.0,0.128739]
[1731277022748,0.00233381,80816.0,80815.0,0.26415558]
[1731277022953,0.18566539,80824.0,80815.0,0.26415558]
[1731277022954,5.27612256,80817.0,80816.0,0.012]
[1731277023162,5.27612256,80817.0,80816.0,0.12594221]
[1731277023584,5.27612256,80817.0,80808.0,0.257497]
[1731277023585,5.27612256,80817.0,80811.0,0.005]
[1731277023821,5.27612256,80817.0,80816.0,0.12794221]
[1731277023937,5.27612256,80817.0,80816.0,0.25667921]
[1731277024568,5.25706485,80817.0,80816.0,0.26167921]
[1731277024791,5.23911342,80817.0,80816.0,0.26167921]
[1731277024996,5.19850928,80817.0,80816.0,0.26167921]
[1731277025457,5.16254038,80817.0,80816.0,0.26167921]
[1731277026062,4.03124032,80827.0,80826.0,0.017]
[1731277026292,4.03124032,80827.0,80826.0,0.13094221]
[1731277026615,4.03124032,80827.0,80826.0,0.25466421]
[1731277027159,4.03124032,80827.0,80826.0,0.26166421]
[1731277027583,4.01624032,80827.0,80826.0,0.26166421]
[1731277027812,4.01624032,80827.0,80826.0,0.30062609]
[1731277028058,4.01624032,80827.0,80826.0,0.13594221]
[1731277028513,4.01624032,80827.0,80826.0,0.12594221]
[1731277028712,4.01624032,80827.0,80826.0,0.13094221]
[1731277028933,4.01624032,80827.0,80826.0,0.12594221]
[1731277029105,4.13996132,80827.0,80826.0,0.12594221]
[1731277029344,4.01624032,80827.0,80807.0,0.005]
[1731277029547,4.01624032,80827.0,80802.0,0.18566539]
[1731277029548,0.123757,80803.0,80802.0,0.18566539]
[1731277029754,0.123743,80812.0,80811.0,0.002]
[1731277029954,0.23845413,80826.0,80802.0,0.12594221]
[1731277030156,0.247527,80800.0,80790.0,0.005]
[1731277030422,0.123756,80804.0,80803.0,0.001672]
[1731277030896,0.20831804,80804.0,80803.0,0.001672]
[1731277031751,0.08456204,80804.0,80778.0,0.18566539]
[1731277031953,0.04579004,80804.0,80779.0,0.12594221]
[1731277032138,0.1257313,80803.0,80778.0,0.18566539]
[1731277032388,0.123794,80779.0,80778.0,0.18566539]
[1731277032637,0.13414651,80803.0,80784.0,0.005]
[1731277032638,0.049,80785.0,80784.0,0.005]
[1731277032842,0.00841521,80803.0,80802.0,0.140759]
[1731277033004,0.18566539,80812.0,80811.0,0.138745]
[1731277033231,0.18566539,80826.0,80823.0,0.123726]
[1731277033417,0.18566539,80826.0,80824.0,0.12594221]
[1731277033623,0.18566539,80826.0,80825.0,0.002]
[1731277033915,0.123714,80832.0,80824.0,0.12594221]
[1731277034143,0.00202904,80841.0,80826.0,0.24966421]
[1731277034306,0.00202904,80841.0,80826.0,0.25466421]
[1731277034525,0.18769443,80841.0,80826.0,0.25466421]
[1731277034687,0.18769443,80841.0,80826.0,0.25666421]
[1731277035507,3.97838808,80827.0,80826.0,0.25666421]
[1731277035705,3.97838808,80827.0,80826.0,0.26166421]
[1731277035928,3.97838808,80827.0,80826.0,0.36166421]
[1731277036181,3.97838808,80827.0,80826.0,0.3666073]
[1731277036390,3.95056592,80827.0,80826.0,0.3666073]
[1731277036616,3.91192403,80827.0,80826.0,0.3666073]
[1731277037013,3.91068679,80827.0,80826.0,0.3666073]
[1731277037158,3.82386181,80827.0,80826.0,0.3666073]
[1731277037361,3.74896181,80827.0,80826.0,0.3666073]
[1731277037561,3.23534807,80827.0,80826.0,0.3666073]
[1731277037811,3.23534807,80827.0,80826.0,0.2743345]
[1731277038191,3.23534807,80827.0,80826.0,0.27433494]
[1731277038424,3.23534807,80827.0,80826.0,0.31466776]
[1731277039209,3.23534807,80827.0,80826.0,0.35132922]
[1731277039650,3.23234807,80827.0,80826.0,0.35132922]
[1731277039836,3.23234807,80827.0,80826.0,0.1989964]
[1731277040042,3.23234807,80827.0,80826.0,0.20509679]
[1731277040276,3.23234807,80827.0,80826.0,0.19903853]
[1731277040488,3.23234807,80827.0,80826.0,0.20103853]
[1731277040773,3.23234807,80827.0,80826.0,0.19903853]
[1731277040979,3.23324941,80827.0,80826.0,0.20103853]
[1731277041845,3.23324941,80827.0,80826.0,0.19903853]
[1731277042272,3.23324941,80827.0,80826.0,0.31716476]
[1731277042461,3.23324941,80827.0,80826.0,0.31103853]
[1731277042808,3.23324941,80827.0,80826.0,0.31271053]
[1731277043212,3.23324941,80827.0,80826.0,0.35341971]
[1731277043434,3.23324941,80827.0,80826.0,0.31071053]
[1731277043646,3.23324941,80827.0,80826.0,0.31271053]
[1731277043841,3.23324941,80827.0,80826.0,0.35541971]
[1731277044023,3.23324941,80827.0,80826.0,0.3696355]
[1731277044739,3.23324941,80827.0,80826.0,0.32692632]
[1731277044941,3.23324941,80827.0,80826.0,0.1582793]
[1731277045147,3.23324941,80827.0,80826.0,0.21072513]
[1731277045388,3.23324941,80827.0,80826.0,0.21272513]
[1731277045502,3.22991023,80827.0,80826.0,0.31272513]
[1731277045703,3.22991023,80827.0,80826.0,0.36967081]
[1731277045904,3.22991023,80827.0,80826.0,0.32696163]
[1731277046304,3.22991023,80827.0,80826.0,0.31272513]
[1731277046529,3.19127262,80827.0,80826.0,0.32696163]
[1731277046935,3.19127262,80827.0,80826.0,0.31272513]
[1731277047142,3.19003571,80827.0,80826.0,0.33709126]
[1731277047382,1.6625362,80827.0,80826.0,0.33709126]
[1731277047593,0.77304492,80837.0,80836.0,0.237707]
[1731277047840,0.64731088,80837.0,80836.0,0.39919723]
[1731277048057,0.64731088,80837.0,80836.0,0.46304072]
[1731277048258,0.64731088,80837.0,80836.0,0.42033154]
[1731277048464,0.64731088,80837.0,80836.0,0.46304072]
[1731277048716,0.54834688,80837.0,80836.0,0.46503198]
[1731277048928,0.4876572,80837.0,80836.0,0.46503198]
[1731277049135,0.4876572,80837.0,80836.0,0.49640787]
[1731277049340,0.4876572,80837.0,80836.0,0.49440787]
[1731277049552,5.02301357,80847.0,80846.0,0.012]
[1731277049765,4.79618978,80847.0,80846.0,0.29436459]
[1731277049968,4.27382798,80847.0,80846.0,0.37044966]
[1731277050173,4.2553443,80847.0,80846.0,0.37044966]
[1731277050400,4.25497337,80847.0,80846.0,0.33507377]
[1731277050584,4.25497337,80847.0,80846.0,0.4103862]
[1731277050790,4.00786188,80847.0,80846.0,0.53632841]
[1731277051027,3.9571495,80847.0,80846.0,0.53632841]
[1731277051230,3.9571495,80847.0,80846.0,0.52600674]
[1731277051358,3.9571495,80847.0,80846.0,0.49463085]
[1731277051559,3.9324115,80847.0,80846.0,0.53000674]
[1731277051766,3.9324115,80847.0,80846.0,0.49863085]
[1731277051767,3.79986264,80847.0,80846.0,0.49863085]
[1731277051980,3.79986264,80847.0,80846.0,0.53000674]
[1731277052175,3.78834715,80847.0,80846.0,0.53000674]
[1731277052379,3.78834715,80847.0,80846.0,0.42670406]
[1731277052588,3.78834715,80847.0,80846.0,0.46023101]
[1731277052589,3.73887115,80847.0,80846.0,0.46023101]
[1731277052917,3.71413315,80847.0,80846.0,0.46023101]
[1731277053143,3.57465715,80847.0,80846.0,0.46023101]
[1731277053301,3.52653722,80847.0,80846.0,0.45823101]
[1731277053505,3.52653722,80847.0,80846.0,0.46223101]
[1731277053715,3.38161475,80847.0,80846.0,0.46023101]
[1731277053919,3.33224008,80847.0,80846.0,0.46023101]
[1731277054351,3.33307608,80847.0,80846.0,0.45923101]
[1731277054568,3.33307608,80847.0,80846.0,0.59028826]
[1731277054799,3.33307608,80847.0,80846.0,0.58828826]
[1731277055000,3.33307608,80847.0,80846.0,0.48828826]
[1731277055529,3.33307608,80847.0,80846.0,0.67043454]
[1731277055955,3.34307608,80847.0,80846.0,0.68571152]
[1731277056125,3.34307608,80847.0,80846.0,0.69459095]
[1731277056361,3.34307608,80847.0,80846.0,0.79459095]
[1731277056684,2.92735047,80847.0,80846.0,0.79459095]
[1731277056909,2.62671124,80847.0,80846.0,0.53803815]
[1731277057120,2.62547485,80847.0,80846.0,0.57625899]
[1731277057632,2.55126085,80847.0,80846.0,0.52360826]
[1731277057969,2.49793684,80847.0,80846.0,0.52360826]
[1731277058241,2.49793684,80847.0,80846.0,0.83686869]
[1731277058440,2.49793684,80847.0,80846.0,0.88951942]
[1731277058619,2.44846084,80847.0,80846.0,0.79664785]
[1731277058821,2.35198178,80847.0,80846.0,0.91598516]
[1731277058966,2.35198178,80847.0,80846.0,0.79664785]
[1731277059163,2.30385461,80847.0,80846.0,0.79864785]
[1731277059367,2.19477667,80847.0,80846.0,0.79864785]
[1731277059589,2.18508458,80847.0,80846.0,0.78367161]
[1731277059819,2.03824661,80847.0,80846.0,0.78366862]
[1731277060544,2.01350861,80847.0,80846.0,0.83631935]
[1731277060739,1.91455661,80847.0,80846.0,0.83631935]